bitfinex/quotes_BTCUSD_20251226
["timestamp","ask_amount","ask_price","bid_price","bid_amount"]
[1766714683513,0.01144,87521.0,87512.0,0.011427]
[1766714684080,0.01144,87521.0,87511.0,0.01142713]
[1766714684336,0.01142556,87523.0,87511.0,0.0685624]
[1766714684486,0.02286569,87522.0,87511.0,0.01142713]
[1766714684692,0.02286569,87522.0,87512.0,0.011427]
[1766714685244,0.02286569,87522.0,87511.0,0.01142713]
[1766714685457,0.01142582,87521.0,87511.0,0.01142713]
[1766714685596,0.02286569,87522.0,87511.0,0.01142713]
[1766714685999,0.01142582,87521.0,87510.0,0.06856316]
[1766714686221,0.01142582,87521.0,87510.0,0.01142726]
[1766714686840,0.01142556,87523.0,87511.0,0.06856229]
[1766714687044,0.01142556,87523.0,87511.0,0.01142713]
[1766714687246,0.01142569,87522.0,87511.0,0.01142713]
[1766714688102,0.01142569,87522.0,87512.0,0.011427]
[1766714688506,0.01142556,87523.0,87512.0,0.011427]
[1766714689328,0.01142556,87523.0,87513.0,0.01142687]
[1766714689533,0.02286543,87524.0,87513.0,0.01142687]
[1766714690037,0.01142556,87523.0,87512.0,0.011427]
[1766714690367,0.02286543,87524.0,87513.0,0.01142687]
[1766714691243,0.02286543,87524.0,87511.0,0.01142713]
[1766714691244,0.07999297,87524.0,87511.0,0.01142713]
[1766714691354,0.01142595,87520.0,87507.0,0.01142765]
[1766714691572,0.82639,87518.0,87506.0,0.01142778]
[1766714691853,0.82639,87518.0,87508.0,0.01142752]
[1766714692002,0.82639,87518.0,87510.0,0.01142726]
[1766714692206,0.82639,87518.0,87511.0,0.01142713]
[1766714692377,0.2284741,87538.0,87511.0,0.0685628]
[1766714692583,0.82639,87526.0,87516.0,0.01142648]
[1766714692861,0.82639,87526.0,87517.0,0.01142635]
[1766714693050,0.01144,87525.0,87517.0,0.06855808]
[1766714693290,0.01144,87525.0,87517.0,0.01142635]
[1766714693432,0.01144,87525.0,87516.0,0.01142648]
[1766714693599,0.01144,87525.0,87517.0,0.01142635]
[1766714694456,0.01144,87525.0,87518.0,0.01142622]
[1766714695043,0.01144,87525.0,87517.0,0.01142635]
[1766714695398,0.01144,87525.0,87514.0,0.01142674]
[1766714696611,0.01142556,87523.0,87511.0,0.01142713]
[1766714696834,0.01142556,87523.0,87512.0,0.011427]
[1766714697037,0.01142543,87524.0,87514.0,0.01142674]
[1766714697572,0.01142556,87523.0,87512.0,0.011427]
[1766714697897,0.01142556,87523.0,87511.0,0.01142713]
[1766714698150,0.82639,87522.0,87511.0,0.01142713]
[1766714698900,0.82639,87522.0,87512.0,0.05713502]
[1766714699306,0.82639,87522.0,87514.0,0.01142674]
[1766714699730,0.82639,87522.0,87513.0,0.01142687]
[1766714700407,0.01142609,87519.0,87508.0,0.01142752]
[1766714700618,0.83781595,87520.0,87510.0,0.01142726]
[1766714700780,0.83781595,87520.0,87509.0,0.01142739]
[1766714701212,0.01142661,87515.0,87505.0,0.01144]
[1766714701495,0.00055,87509.0,87505.0,0.02286791]
[1766714701713,0.00055,87509.0,87505.0,0.01144]
[1766714701860,0.82639,87514.0,87505.0,0.02286791]
[1766714702065,0.82639,87514.0,87506.0,0.01142778]
[1766714702285,0.82639,87514.0,87505.0,0.02286791]
[1766714702672,0.011427,87512.0,87505.0,0.01144]
[1766714703072,0.83781687,87513.0,87505.0,0.01144]
[1766714703471,0.82639,87513.0,87505.0,0.01144]
[1766714703932,0.82639,87513.0,87505.0,0.02286791]
[1766714704095,0.82639,87513.0,87505.0,0.01144]
[1766714704641,0.83781713,87511.0,87505.0,0.01144]
[1766714705120,0.82639,87511.0,87505.0,0.01144]
[1766714705831,0.82639,87511.0,87507.0,0.01142765]
[1766714706032,0.01144,87517.0,87508.0,0.01142752]
[1766714706407,0.82639,87518.0,87508.0,0.01142752]
[1766714706408,0.01144,87516.0,87508.0,0.01142752]
[1766714706619,0.01144,87517.0,87508.0,0.01142752]
[1766714706933,0.01144,87517.0,87507.0,0.01142765]
[1766714707253,0.01144,87517.0,87508.0,0.01142752]
[1766714708164,0.001099,87508.0,87500.0,0.01144]
[1766714708400,0.83781648,87516.0,87504.0,0.05713976]
[1766714708972,0.82639,87516.0,87506.0,0.01142778]
[1766714710143,0.82639,87516.0,87507.0,0.01142765]
[1766714710987,0.82639,87516.0,87508.0,0.01142752]
[1766714711188,0.82639,87516.0,87507.0,0.01142765]
[1766714711640,0.82639,87516.0,87506.0,0.01142778]
[1766714711838,0.82639,87516.0,87507.0,0.01142765]
[1766714712469,0.82639,87516.0,87506.0,0.01142778]
[1766714712637,0.82639,87516.0,87507.0,0.01142765]
[1766714713933,0.83828,87513.0,87500.0,0.02297404]
[1766714714127,0.83828,87509.0,87500.0,0.01154547]
[1766714714271,0.83828,87509.0,87500.0,0.02297404]
[1766714714476,0.84970739,87509.0,87500.0,0.01154547]
[1766714714893,0.83828,87509.0,87500.0,0.02297404]
[1766714715324,0.83828,87509.0,87501.0,0.01142844]
[1766714715503,0.83828,87509.0,87502.0,0.01142831]
[1766714715703,0.83828,87509.0,87503.0,0.01142817]
[1766714715955,0.83828,87509.0,87502.0,0.01142831]
[1766714716292,0.83828,87509.0,87503.0,0.01142817]
[1766714716490,0.83828,87509.0,87502.0,0.01142831]
[1766714716719,0.837731,87509.0,87503.0,0.01142817]
[1766714718698,0.837731,87509.0,87502.0,0.01142831]
[1766714719121,0.837731,87509.0,87503.0,0.01142817]
[1766714719322,0.837731,87509.0,87502.0,0.01142831]
[1766714720034,0.837731,87509.0,87501.0,0.01142844]
[1766714720230,0.837731,87509.0,87500.0,0.02297404]
[1766714720438,0.837731,87509.0,87501.0,0.01142844]
[1766714720637,0.837731,87509.0,87500.0,0.02297404]
[1766714720859,0.837731,87509.0,87501.0,0.01142844]
[1766714721009,0.837731,87509.0,87502.0,0.01142831]
[1766714721414,0.837731,87509.0,87501.0,0.01142844]
[1766714721822,0.837731,87509.0,87502.0,0.01142831]
[1766714722656,0.837731,87509.0,87501.0,0.01142844]
[1766714723199,0.837653,87509.0,87502.0,0.01142831]
[1766714723378,0.837653,87509.0,87500.0,0.01154547]
[1766714723587,0.000549,87502.0,87500.0,0.01154547]
[1766714723949,0.01142752,87508.0,87500.0,0.01154547]
[1766714724135,0.83828,87508.0,87500.0,0.01154547]
[1766714724577,0.83828,87506.0,87500.0,0.01099647]
[1766714725549,0.837731,87506.0,87500.0,0.01099647]
[1766714725749,0.837731,87506.0,87500.0,0.02242504]
[1766714726513,0.837731,87506.0,87500.0,0.01099647]
[1766714727079,0.837731,87506.0,87500.0,0.02242504]
[1766714727307,0.837731,87506.0,87500.0,0.01099647]
[1766714728235,0.837731,87506.0,87500.0,0.02242504]
[1766714728414,0.837731,87506.0,87500.0,0.01099647]
[1766714728616,0.837731,87506.0,87500.0,0.02242504]
[1766714729358,0.837731,87506.0,87500.0,0.01099647]
[1766714729885,0.837731,87506.0,87500.0,0.02242504]
[1766714730039,0.837731,87506.0,87500.0,0.01099647]
[1766714730250,0.837731,87506.0,87500.0,0.02242504]
[1766714731177,0.837731,87506.0,87501.0,0.01142844]
[1766714731329,0.837731,87506.0,87500.0,0.02242504]
[1766714733784,0.02286556,87523.0,87513.0,0.01142687]
[1766714734065,0.02286556,87523.0,87511.0,0.01142713]
[1766714734066,0.01095569,87522.0,87511.0,0.01142713]
[1766714734208,0.01142661,87515.0,87504.0,0.01142804]
[1766714734532,0.000549,87511.0,87508.0,0.01142752]
[1766714734763,0.01144,87519.0,87515.0,0.00055]
[1766714734894,0.02286609,87519.0,87508.0,0.01142752]
[1766714735282,0.01144,87519.0,87510.0,0.01142726]
[1766714736198,0.01144,87519.0,87511.0,0.01142713]
[1766714736400,0.01144,87519.0,87509.0,0.01142739]
[1766714736713,0.02286609,87519.0,87509.0,0.01142739]
[1766714736920,0.01144,87519.0,87510.0,0.01142726]
[1766714737124,0.01144,87519.0,87511.0,0.01142713]
[1766714737287,0.01144,87519.0,87510.0,0.01142726]
[1766714738148,0.01144,87519.0,87512.0,0.011427]
[1766714738359,0.01144,87519.0,87511.0,0.01142713]
[1766714738896,0.01144,87519.0,87508.0,0.01142752]
[1766714739174,0.01142622,87518.0,87508.0,0.01142752]
[1766714739379,0.02286609,87519.0,87509.0,0.01142739]
[1766714740054,0.01142609,87519.0,87509.0,0.01142739]
[1766714741862,0.01142622,87518.0,87508.0,0.01142752]
[1766714743967,0.01142635,87517.0,87507.0,0.01142765]
[1766714744810,0.05713355,87515.0,87501.0,0.01142844]
[1766714745015,0.81738,87505.0,87500.0,0.00010547]
[1766714748793,0.82880791,87505.0,87500.0,0.00010547]
[1766714749133,0.81738,87504.0,87500.0,0.00010547]
[1766714749356,0.05714742,87493.0,87481.0,0.01143105]
[1766714749502,4.818e-05,87493.0,87486.0,0.0114304]
[1766714749909,4.818e-05,87493.0,87485.0,0.06858265]
[1766714749910,4.818e-05,87493.0,87485.0,0.01143053]
[1766714750133,4.818e-05,87493.0,87487.0,0.01143026]
[1766714750765,4.818e-05,87493.0,87488.0,0.01143013]
[1766714750937,4.818e-05,87493.0,87487.0,0.01143026]
[1766714751188,0.01143026,87487.0,87475.0,0.01143183]
[1766714751328,0.82881013,87488.0,87478.0,0.01144]
[1766714751529,0.82881013,87488.0,87470.0,0.4140537]
[1766714751530,0.01143105,87481.0,87470.0,0.0343131]
[1766714751732,0.01143118,87480.0,87468.0,0.01143275]
[1766714751955,0.01143131,87479.0,87469.0,0.01143262]
[1766714752168,0.01143131,87479.0,87462.0,0.22866981]
[1766714752169,0.01142987,87490.0,87479.0,0.001099]
[1766714752438,0.82880961,87492.0,87479.0,0.001099]
[1766714752439,0.01142974,87491.0,87480.0,0.42548488]
[1766714752648,0.01144,87490.0,87481.0,0.01143105]
[1766714752842,0.02286987,87490.0,87481.0,0.01143105]
[1766714753081,0.01143,87489.0,87480.0,0.01143118]
[1766714753398,0.01143013,87488.0,87478.0,0.01143144]
[1766714753902,0.8288104,87486.0,87476.0,0.0114317]
[1766714754061,0.01143053,87485.0,87475.0,0.01143183]
[1766714754378,0.01143053,87485.0,87476.0,0.0114317]
[1766714754379,0.81738,87484.0,87476.0,0.0114317]
[1766714754587,0.81738,87484.0,87472.0,0.01143222]
[1766714754588,0.01143144,87478.0,87470.0,0.01144]
[1766714754735,0.01143105,87481.0,87478.0,0.000549]
[1766714755139,0.01143105,87481.0,87471.0,0.01143236]
[1766714755755,0.05715426,87483.0,87471.0,0.01143236]
[1766714755756,5.31e-06,87483.0,87471.0,0.01143236]
[1766714755961,0.01143105,87481.0,87472.0,0.01143222]
[1766714756378,0.01143092,87482.0,87481.0,0.000549]
[1766714756796,0.01143105,87481.0,87471.0,0.01143236]
[1766714758298,0.01143105,87481.0,87472.0,0.01143222]
[1766714758491,0.01143105,87481.0,87471.0,0.01143236]
[1766714758949,0.01143105,87481.0,87470.0,0.01144]
[1766714758950,0.01143131,87479.0,87470.0,0.01144]
[1766714759595,0.01143157,87477.0,87470.0,0.01144]
[1766714759797,0.82881157,87477.0,87465.0,0.08003772]
[1766714760023,0.0114317,87476.0,87466.0,0.01143301]
[1766714760223,0.06858757,87480.0,87466.0,0.01143301]
[1766714760224,0.01143013,87488.0,87476.0,0.001099]
[1766714760400,0.01143053,87485.0,87475.0,0.01143183]
[1766714760630,0.01143053,87485.0,87469.0,0.01143262]
[1766714760631,0.01143144,87478.0,87465.0,0.02287314]
[1766714760834,0.01143183,87475.0,87465.0,0.02287314]
[1766714760990,0.057161,87473.0,87465.0,0.01144]
[1766714761195,0.01144,87477.0,87473.0,0.000549]
[1766714761377,0.81738,87488.0,87470.0,0.01143249]
[1766714761378,0.01143105,87481.0,87470.0,0.01143249]
[1766714761578,0.068585,87483.0,87470.0,0.01143249]
[1766714761821,0.82881013,87488.0,87483.0,0.00055]
[1766714761995,0.01144,87487.0,87483.0,0.00055]
[1766714762302,0.01144,87487.0,87478.0,0.01143144]
[1766714762520,0.0114304,87486.0,87475.0,0.01143183]
[1766714762680,0.0114304,87486.0,87476.0,0.0114317]
[1766714762875,0.0114304,87486.0,87472.0,0.01143222]
[1766714762876,0.01143053,87485.0,87472.0,0.01143222]
[1766714763133,0.01143079,87483.0,87474.0,0.01143196]
[1766714763430,0.81738,87486.0,87477.0,0.01143157]
[1766714763660,0.81738,87486.0,87478.0,0.01143144]
[1766714763810,0.81738,87486.0,87477.0,0.01143157]
[1766714763991,0.81738,87486.0,87478.0,0.01143144]
[1766714764406,0.8288104,87486.0,87477.0,0.01143157]
[1766714764602,0.8288104,87486.0,87476.0,0.0114317]
[1766714765005,0.81738,87486.0,87477.0,0.01143157]
[1766714765233,0.8288104,87486.0,87476.0,0.0114317]
[1766714765609,0.8288104,87486.0,87477.0,0.01143157]
[1766714765811,0.8288104,87486.0,87476.0,0.0114317]
[1766714766394,0.8288104,87486.0,87475.0,0.06859058]
[1766714766812,0.82881053,87485.0,87472.0,0.06859287]
[1766714767016,0.01143066,87484.0,87475.0,0.01143183]
[1766714767216,0.82881053,87485.0,87476.0,0.0114317]
[1766714767217,0.81738,87485.0,87476.0,0.0114317]
[1766714767800,0.02287026,87487.0,87477.0,0.01143157]
[1766714767801,0.01144,87487.0,87477.0,0.01143157]
[1766714768163,0.02287026,87487.0,87477.0,0.01143157]
[1766714768374,0.8288104,87486.0,87477.0,0.01143157]
[1766714768579,0.81738,87486.0,87477.0,0.01143157]
[1766714768985,0.8288104,87486.0,87476.0,0.0114317]
[1766714769178,0.8288104,87486.0,87477.0,0.01143157]
[1766714769831,0.03662291,87491.0,87474.0,0.06859179]
[1766714769832,0.81738,87492.0,87486.0,0.00055]
[1766714770045,0.01144,87491.0,87486.0,0.00055]
[1766714770457,0.01144,87491.0,87484.0,0.01143066]
[1766714771898,0.01144,87491.0,87488.0,0.01143013]
[1766714771899,0.01067742,87491.0,87488.0,0.01143013]
[1766714773720,4.818e-05,87493.0,87489.0,0.01143]
[1766714774092,4.818e-05,87493.0,87490.0,0.01142987]
[1766714774276,4.818e-05,87493.0,87490.0,0.06857922]
[1766714774478,4.818e-05,87493.0,87490.0,0.01142987]
[1766714774914,4.818e-05,87493.0,87489.0,0.01143]
[1766714775092,4.818e-05,87493.0,87490.0,0.01142987]
[1766714775504,0.0409966,87524.0,87488.0,0.06858043]
[1766714775505,0.01142726,87510.0,87500.0,0.01142857]
[1766714775704,0.01144,87509.0,87502.0,0.01142831]
[1766714775905,0.01144,87509.0,87503.0,0.01142817]
[1766714776927,0.01144,87509.0,87502.0,0.01142831]
[1766714777123,0.01144,87509.0,87501.0,0.01142844]
[1766714777326,0.01144,87509.0,87502.0,0.01142831]
[1766714777522,0.01144,87509.0,87501.0,0.01142844]
[1766714777728,0.01144,87509.0,87502.0,0.01142831]
[1766714778633,0.01144,87509.0,87503.0,0.01142817]
[1766714778820,0.01144,87509.0,87501.0,0.01142844]
[1766714779606,0.01144,87509.0,87498.0,0.01142883]
[1766714779805,0.01144,87509.0,87496.0,0.06857337]
[1766714779806,0.01144,87509.0,87497.0,0.01142896]
[1766714780040,0.01144,87509.0,87492.0,0.22859118]
[1766714780041,0.01144,87509.0,87503.0,0.01142817]
[1766714780710,0.01144,87509.0,87506.0,0.01142778]
[1766714780930,0.77262,87519.0,87510.0,0.01142726]
[1766714781140,0.00010554,87519.0,87511.0,0.01142713]
[1766714781293,0.01144,87518.0,87507.0,0.0685655]
[1766714781646,0.01144,87518.0,87509.0,0.01142739]
[1766714782075,0.01144,87518.0,87510.0,0.01142726]
[1766714782280,0.00010554,87519.0,87511.0,0.01142713]
[1766714782482,0.00010554,87519.0,87513.0,0.01142687]
[1766714782644,0.00010554,87519.0,87511.0,0.01142713]
[1766714783045,0.00010554,87519.0,87512.0,0.011427]
[1766714783248,0.00010554,87519.0,87513.0,0.01142687]
[1766714783632,0.00010554,87519.0,87512.0,0.011427]
[1766714783867,0.00010554,87519.0,87515.0,0.06855914]
[1766714784068,0.00010554,87519.0,87518.0,0.0571311]
[1766714787552,0.00010554,87519.0,87516.0,0.07999827]
[1766714787726,0.000549,87518.0,87516.0,0.07999827]
[1766714788169,0.00010554,87519.0,87517.0,0.05713129]
[1766714790370,0.00010554,87519.0,87516.0,0.07999827]
[1766714790502,0.000549,87517.0,87516.0,0.07999827]
[1766714790688,0.00010554,87519.0,87516.0,0.07523454]
[1766714793423,0.773719,87516.0,87487.0,0.45720631]
[1766714793623,0.78514548,87516.0,87504.0,0.05714009]
[1766714793844,0.01142687,87513.0,87501.0,0.10519323]
[1766714794041,0.01142674,87514.0,87503.0,0.01142817]
[1766714794243,0.01142661,87515.0,87504.0,0.01142804]
[1766714794488,0.77262,87516.0,87507.0,0.01142765]
[1766714794679,0.26511316,87532.0,87501.0,0.03662291]
[1766714794680,0.01142569,87522.0,87501.0,0.22856881]
[1766714794877,0.0114253,87525.0,87507.0,0.01142765]
[1766714794878,0.760601,87517.0,87507.0,0.01142765]
[1766714795056,0.760601,87517.0,87509.0,0.01142739]
[1766714795468,0.760601,87517.0,87508.0,0.01142752]
[1766714796015,0.77202735,87517.0,87507.0,0.06856534]
[1766714796140,0.760601,87517.0,87508.0,0.01142752]
[1766714798077,0.76053038,87517.0,87509.0,0.01142739]
[1766714798297,0.02286582,87521.0,87510.0,0.01142726]
[1766714798504,0.01142609,87519.0,87510.0,0.01142726]
[1766714798727,0.01142713,87511.0,87502.0,0.01142831]
[1766714798942,0.77262,87506.0,87501.0,0.00010554]
[1766714800188,0.78404804,87504.0,87501.0,0.00010554]
[1766714801587,0.82599,87509.0,87501.0,0.00010554]
[1766714802497,0.01142765,87507.0,87493.0,0.01142948]
[1766714802692,0.01142765,87507.0,87496.0,0.01142909]
[1766714802693,0.82599,87506.0,87496.0,0.01142909]
[1766714802852,0.82599,87506.0,87497.0,0.01142896]
[1766714803036,0.01142765,87507.0,87498.0,0.01142883]
[1766714803690,0.01142765,87507.0,87497.0,0.01142896]
[1766714803882,0.01142778,87506.0,87496.0,0.01142909]
[1766714804087,0.01142765,87507.0,87497.0,0.01142896]
[1766714804297,0.06856402,87510.0,87497.0,0.01142896]
[1766714804469,0.01142752,87508.0,87497.0,0.01142896]
[1766714804883,0.01142765,87507.0,87497.0,0.01142896]
[1766714806794,0.01142765,87507.0,87498.0,0.01142883]
[1766714808228,0.01142765,87507.0,87497.0,0.01142896]
[1766714808435,0.01142778,87506.0,87496.0,0.01142909]
[1766714808824,0.01142765,87507.0,87497.0,0.01142896]
[1766714809030,0.01142752,87508.0,87498.0,0.01142883]
[1766714812110,0.01142739,87509.0,87500.0,0.01142857]
[1766714812312,0.01142752,87508.0,87497.0,0.01142896]
[1766714812515,0.01142765,87507.0,87497.0,0.01142896]
[1766714812674,0.01142778,87506.0,87497.0,0.01142896]
[1766714813015,0.01142765,87507.0,87497.0,0.01142896]
[1766714813230,0.01142778,87506.0,87497.0,0.01142896]
[1766714813713,0.01142778,87506.0,87496.0,0.01142909]
[1766714813947,0.01142778,87506.0,87497.0,0.01142896]
[1766714814132,0.01142778,87506.0,87496.0,0.01142909]
[1766714814496,0.01142778,87506.0,87497.0,0.01142896]
[1766714815525,0.06856546,87508.0,87498.0,0.01142883]
[1766714815526,0.01142752,87508.0,87498.0,0.01142883]
[1766714815728,0.01142752,87508.0,87499.0,0.0114287]
[1766714816149,0.01142752,87508.0,87498.0,0.01142883]
[1766714817282,0.01142765,87507.0,87498.0,0.01142883]
[1766714817716,0.01142752,87508.0,87498.0,0.01142883]
[1766714817935,0.01142739,87509.0,87499.0,0.0114287]
[1766714818150,0.82599,87513.0,87503.0,0.01142817]
[1766714818350,0.01144,87510.0,87501.0,0.06857024]
[1766714818564,0.01144,87510.0,87502.0,0.01142831]
[1766714818942,0.01144,87510.0,87503.0,0.01142817]
[1766714819141,0.01144,87510.0,87502.0,0.01142831]
[1766714819317,0.01144,87510.0,87501.0,0.01142844]
[1766714820055,0.01144,87510.0,87502.0,0.01142831]
[1766714820523,0.01144,87510.0,87501.0,0.01142844]
[1766714820864,0.01144,87510.0,87502.0,0.01142831]
[1766714821209,0.01144,87510.0,87503.0,0.01142817]
[1766714821410,0.81089556,87523.0,87511.0,0.01142713]
[1766714821650,0.06855622,87520.0,87510.0,0.000549]
[1766714821856,0.02286582,87521.0,87510.0,0.01197626]
[1766714822057,0.01142648,87516.0,87503.0,0.01142817]
[1766714822229,0.01142648,87516.0,87501.0,0.01142844]
[1766714822230,0.01142635,87517.0,87508.0,0.01142752]
[1766714822427,0.05713175,87518.0,87508.0,0.01142752]
[1766714822428,0.06855797,87518.0,87508.0,0.01142752]
[1766714822633,0.06855797,87518.0,87507.0,0.01142765]
[1766714822634,0.01142648,87516.0,87507.0,0.01142765]
[1766714822966,0.01142622,87518.0,87508.0,0.01142752]
[1766714823569,0.01142635,87517.0,87508.0,0.01142752]
[1766714823869,0.01142622,87518.0,87508.0,0.01142752]
[1766714824456,0.01142622,87518.0,87509.0,0.01142739]
[1766714824816,0.01142622,87518.0,87508.0,0.01142752]
[1766714824945,0.05723362,87523.0,87508.0,0.01142752]
[1766714824946,0.01142504,87527.0,87518.0,0.000549]
[1766714825549,0.0114253,87525.0,87515.0,0.01142661]
[1766714825776,1.02794625,87537.0,87516.0,0.03662291]
[1766714825954,0.05716,87545.0,87533.0,0.01142426]
[1766714825955,0.0198499,87536.0,87533.0,0.01142426]
[1766714826132,0.011673,87544.0,87533.0,0.01142426]
[1766714826339,0.79947,87543.0,87535.0,0.011424]
[1766714826536,0.79947,87543.0,87533.0,0.06854551]
[1766714826537,0.79947,87543.0,87534.0,0.01142413]
[1766714826784,0.00025018,87544.0,87537.0,0.01142374]
[1766714826988,1.8e-07,87544.0,87538.0,0.01142361]
[1766714827165,1.8e-07,87544.0,87532.0,0.06854625]
[1766714827166,0.79947,87543.0,87532.0,0.06854625]
[1766714827397,0.011423,87544.0,87530.0,0.06854736]
[1766714827398,1.8e-07,87544.0,87543.0,0.000549]
[1766714827853,1.8e-07,87544.0,87539.0,0.01142347]
[1766714828058,1.8e-07,87544.0,87537.0,0.01142374]
[1766714828197,1.8e-07,87544.0,87539.0,0.06854057]
[1766714828396,1.8e-07,87544.0,87541.0,0.01142321]
[1766714828581,1.8e-07,87544.0,87541.0,0.06853899]
[1766714829036,1.8e-07,87544.0,87541.0,0.01142321]
[1766714830002,1.8e-07,87544.0,87538.0,0.02286361]
[1766714830602,1.8e-07,87544.0,87539.0,0.01142347]
[1766714831603,1.8e-07,87544.0,87541.0,0.01142321]
[1766714831946,1.8e-07,87544.0,87540.0,0.01142334]
[1766714832086,1.8e-07,87544.0,87541.0,0.01142321]
[1766714832291,1.8e-07,87544.0,87540.0,0.01142334]
[1766714832541,1.8e-07,87544.0,87539.0,0.01142347]
[1766714832787,1.8e-07,87544.0,87540.0,0.01142334]
[1766714832965,1.8e-07,87544.0,87541.0,0.01142321]
[1766714833907,1.8e-07,87544.0,87538.0,0.01144]
[1766714834112,1.8e-07,87544.0,87539.0,0.01142347]
[1766714834932,1.8e-07,87544.0,87540.0,0.01142334]
[1766714835129,1.8e-07,87544.0,87539.0,0.01142347]
[1766714835284,1.8e-07,87544.0,87538.0,0.02286361]
[1766714835624,1.8e-07,87544.0,87539.0,0.01142347]
[1766714837129,1.8e-07,87544.0,87538.0,0.02286361]
[1766714837336,1.8e-07,87544.0,87540.0,0.01142334]
[1766714837830,1.8e-07,87544.0,87539.0,0.01142347]
[1766714837997,1.8e-07,87544.0,87540.0,0.01142334]
[1766714838397,1.8e-07,87544.0,87539.0,0.01142347]
[1766714838596,1.8e-07,87544.0,87540.0,0.01142334]
[1766714838795,1.8e-07,87544.0,87538.0,0.02286361]
[1766714839000,1.8e-07,87544.0,87540.0,0.01142334]
[1766714839321,1.8e-07,87544.0,87538.0,0.01144]
[1766714839638,1.8e-07,87544.0,87538.0,0.02286361]
[1766714840244,1.8e-07,87544.0,87539.0,0.05711739]
[1766714840459,1.8e-07,87544.0,87541.0,0.01142321]
[1766714840951,1.8e-07,87544.0,87541.0,0.06853865]
[1766714841736,1.8e-07,87544.0,87541.0,0.01142321]
[1766714843422,1.8e-07,87544.0,87541.0,0.06853878]
[1766714844386,1.8e-07,87544.0,87541.0,0.01142321]
[1766714844532,1.8e-07,87544.0,87540.0,0.01142334]
[1766714845172,1.8e-07,87544.0,87539.0,0.01142347]
[1766714845369,1.8e-07,87544.0,87540.0,0.01142334]
[1766714846787,1.8e-07,87544.0,87541.0,0.01142321]
[1766714846938,1.8e-07,87544.0,87541.0,0.06853896]
[1766714848270,1.8e-07,87544.0,87542.0,0.0571151]
[1766714848453,1.8e-07,87544.0,87541.0,0.06853896]
[1766714849404,0.01250069,87550.0,87544.0,0.01142282]
[1766714849605,0.01144,87554.0,87550.0,0.00109831]
[1766714849750,0.01154552,87554.0,87550.0,0.00109831]
[1766714849950,0.01154552,87554.0,87549.0,0.01142217]
[1766714850205,0.01154552,87554.0,87547.0,0.06853395]
[1766714850501,0.01154552,87554.0,87551.0,0.01142191]
[1766714850664,0.01154552,87554.0,87550.0,0.01142204]
[1766714850851,0.01154552,87554.0,87551.0,0.01142191]
[1766714851048,0.00010552,87554.0,87551.0,0.01142191]
[1766714851701,5.2e-07,87554.0,87551.0,0.06853089]
[1766714852241,5.2e-07,87554.0,87551.0,0.01142191]
[1766714853492,0.76269159,87562.0,87551.0,0.01142191]
[1766714853699,0.01144,87559.0,87552.0,0.01142178]
[1766714853909,0.01144,87559.0,87550.0,0.48272384]
[1766714853910,0.76341,87572.0,87564.0,0.01142021]
[1766714854105,0.76341,87572.0,87560.0,0.01142074]
[1766714854106,0.06851703,87570.0,87560.0,0.41419188]
[1766714854305,0.01141956,87569.0,87560.0,0.41419188]
[1766714854472,0.01141982,87567.0,87560.0,0.41419188]
[1766714854676,0.000105,87560.0,87557.0,0.01142113]
[1766714854919,0.000105,87560.0,87556.0,0.01142126]
[1766714855095,0.000105,87560.0,87557.0,0.06852661]
[1766714855307,0.82050588,87572.0,87553.0,0.01144]
[1766714855308,0.01142021,87564.0,87553.0,0.01142165]
[1766714855488,0.01142126,87556.0,87550.0,0.01144]
[1766714855694,0.0003127,87554.0,87550.0,0.01144]
[1766714855894,0.76341,87555.0,87550.0,0.01144]
[1766714856122,0.00025015,87552.0,87550.0,0.01144]
[1766714858232,0.00025015,87552.0,87543.0,0.04570864]
[1766714858564,0.01167193,87552.0,87546.0,0.01144]
[1766714858732,0.00025015,87552.0,87546.0,0.01144]
[1766714859337,0.01142191,87551.0,87546.0,0.01144]
[1766714859535,0.00025015,87552.0,87546.0,0.01144]
[1766714860662,0.01167193,87552.0,87546.0,0.01144]
[1766714860988,0.01142191,87551.0,87546.0,0.01144]
[1766714861616,0.00025015,87552.0,87546.0,0.01144]
[1766714862170,0.01142191,87551.0,87546.0,0.01144]
[1766714862370,0.01167193,87552.0,87546.0,0.01144]
[1766714862576,0.00025015,87552.0,87546.0,0.01144]
[1766714863653,0.01167193,87552.0,87546.0,0.01144]
[1766714864223,0.00025015,87552.0,87546.0,0.01144]
[1766714864866,0.01167193,87552.0,87546.0,0.01144]
[1766714865073,0.00025015,87552.0,87546.0,0.01144]
[1766714866511,0.01167193,87552.0,87546.0,0.01144]
[1766714866748,0.01142191,87551.0,87546.0,0.01144]
[1766714866967,0.01167193,87552.0,87546.0,0.01144]
[1766714867382,0.00025015,87552.0,87546.0,0.01144]
[1766714867597,0.01167193,87552.0,87546.0,0.01144]
[1766714868181,0.00025015,87552.0,87546.0,0.01144]
[1766714868589,0.01167193,87552.0,87546.0,0.01144]
[1766714868790,0.06853345,87549.0,87546.0,0.01144]
[1766714869013,0.05711203,87548.0,87546.0,0.00615134]
[1766714869218,0.06853345,87549.0,87546.0,0.00615134]
[1766714869841,0.01142217,87549.0,87546.0,0.00615134]
[1766714870116,0.01142204,87550.0,87546.0,0.00615134]
[1766714870341,0.01142217,87549.0,87546.0,0.00615134]
[1766714870697,0.01142217,87549.0,87543.0,0.00010552]
[1766714870923,0.80870217,87549.0,87543.0,0.00010552]
[1766714871131,0.79728,87549.0,87543.0,0.00010552]
[1766714872256,0.79728,87549.0,87540.0,0.00977975]
[1766714872589,0.01142243,87547.0,87540.0,0.00977975]
[1766714872762,0.8087023,87548.0,87540.0,0.00977975]
[1766714872988,0.01142243,87547.0,87540.0,0.00977975]
[1766714874802,0.80870256,87546.0,87540.0,0.00977975]
[1766714876507,0.86581539,87546.0,87540.0,0.00977975]
[1766714876716,0.79728,87544.0,87536.0,0.01144]
[1766714876917,0.80870282,87544.0,87534.0,0.01142413]
[1766714877212,0.80870282,87544.0,87532.0,0.01142439]
[1766714877213,0.79728,87541.0,87532.0,0.01144]
[1766714878006,0.80870321,87541.0,87532.0,0.01144]
[1766714878216,0.79728,87541.0,87532.0,0.07998596]
[1766714878820,0.79728,87541.0,87533.0,0.01142426]
[1766714879053,0.79728,87541.0,87532.0,0.07998596]
[1766714879288,0.01142426,87533.0,87521.0,0.01142582]
[1766714879409,0.01142465,87530.0,87522.0,0.01144]
[1766714879817,0.79728,87531.0,87522.0,0.02286569]
[1766714880427,0.79728,87531.0,87523.0,0.01142556]
[1766714880648,0.80870452,87531.0,87522.0,0.01144]
[1766714880854,0.79728,87528.0,87522.0,0.01144]
[1766714881056,0.79728,87525.0,87522.0,0.01144]
[1766714881300,0.01142439,87532.0,87525.0,0.000549]
[1766714881461,0.01142452,87531.0,87522.0,0.01144]
[1766714881663,0.00037382,87533.0,87522.0,0.01144]